[Event "44th Chess Olympiad Women 2022"]
[Site "Chennai"]
[Date "2022.07.31"]
[Round "3.23"]
[White "Okuyaz, Duru"]
[Black "Sara Masood Abdullah"]
[Result "1-0"]
[WhiteElo "2090"]
[BlackElo "1677"]
[Annotator "NA RC"]
[PlyCount "79"]
[EventDate "2022.??.??"]
[TimeControl "60"]

1. e4 {[%emt 0:00:04]} e6 {[%emt 0:00:11]} 2. d3 {[%emt 0:00:07]} d5 {[%emt 0:
00:00]} 3. Nd2 {[%emt 0:00:06]} Nf6 {[%emt 0:00:34]} 4. Ngf3 {[%emt 0:00:07]}
c5 {[%emt 0:01:20]} 5. g3 {[%emt 0:00:10]} Nc6 {[%emt 0:00:46]} 6. Bg2 {
[%emt 0:00:07]} Be7 {[%emt 0:01:51]} 7. O-O {[%emt 0:00:07]} O-O {[%emt 0:00:
00]} 8. e5 {[%emt 0:00:09]} Nd7 {[%emt 0:01:32]} 9. Re1 {[%emt 0:00:08]} Qc7 {
[%emt 0:01:55]} 10. Qe2 {[%emt 0:00:10]} b5 {[%emt 0:02:24]} 11. Nf1 {[%emt 0:
00:00]} Bb7 {[%emt 0:00:35]} 12. Bf4 {[%emt 0:01:45]} Rac8 {[%emt 0:06:19]} 13.
h4 {[%emt 0:02:14]} c4 {[%emt 0:09:41]} 14. d4 {[%emt 0:03:16]} b4 {[%emt 0:00:
00]} 15. Ne3 {[%emt 0:03:32]} Qb6 {[%emt 0:07:22]} 16. c3 {[%emt 0:06:17]} a5 {
[%emt 0:10:38]} 17. Ng5 {[%emt 0:01:30]} Bxg5 {[%emt 0:05:26]} 18. Bxg5 {
[%emt 0:02:25]} Nd8 {[%emt 0:05:40]} 19. Ng4 {[%emt 0:01:47]} a4 {[%emt 0:00:
00]} 20. a3 {[%emt 0:04:46]} bxc3 {[%emt 0:02:27]} 21. bxc3 {[%emt 0:00:09]}
Bc6 {[%emt 0:06:49]} 22. Rab1 {[%emt 0:01:40]} Qa7 {[%emt 0:02:31]} 23. h5 {
[%emt 0:00:26]} Rb8 {[%emt 0:03:13]} 24. h6 {[%emt 0:00:46]} Rxb1 {[%emt 0:00:
00]} 25. Rxb1 {[%emt 0:00:07]} f6 {[%emt 0:04:50]} 26. hxg7 {[%emt 0:00:45]}
fxg5 {[%emt 0:01:09]} 27. gxf8=Q+ {[%emt 0:00:16]} Nxf8 {[%emt 0:00:38]} 28.
Nf6+ {[%emt 0:00:21]} Kg7 {[%emt 0:02:49]} 29. Qf3 {[%emt 0:01:30]} Nf7 {
[%emt 0:02:23]} 30. Nh5+ {[%emt 0:00:20]} Kg8 {[%emt 0:01:05]} 31. Qf6 {
[%emt 0:00:15]} Nh8 {[%emt 0:01:13]} 32. Rb8 {[%emt 0:00:46]} Qf7 {[%emt 0:00:
00]} 33. Rxf8+ {[%emt 0:02:31]} Kxf8 {[%emt 0:01:26]} 34. Qxh8+ {[%emt 0:00:14]
} Ke7 {[%emt 0:00:03]} 35. Nf6 {[%emt 0:00:30]} Qg6 {[%emt 0:01:14]} 36. Qb8 {
[%emt 0:01:42]} Be8 {[%emt 0:00:48]} 37. Qc7+ {[%emt 0:00:35]} Kf8 {[%emt 0:00:
00]} 38. Nxh7+ {[%emt 0:00:08]} Kg8 {[%emt 0:00:25]} 39. Nf6+ {[%emt 0:00:03]}
Kh8 {[%emt 0:00:41]} 40. Qd8 {[%emt 0:02:00]} 1-0

[Event "44th Chess Olympiad Women 2022"]
[Site "Chennai"]
[Date "2022.07.31"]
[Round "3.24"]
[White "Baginskaite, Kamile"]
[Black "Ahmad Murad, Fatema Alzahraa."]
[Result "1-0"]
[WhiteElo "2134"]
[BlackElo "1791"]
[Annotator "NA RC"]
[PlyCount "50"]
[EventDate "2022.??.??"]
[TimeControl "60"]

1. d4 {[%emt 0:00:02]} d5 {[%emt 0:00:08]} 2. c4 {[%emt 0:00:05]} e6 {[%emt 0:
00:00]} 3. Nc3 {[%emt 0:02:56]} Nf6 {[%emt 0:00:22]} 4. cxd5 {[%emt 0:00:25]}
exd5 {[%emt 0:00:23]} 5. Bg5 {[%emt 0:00:07]} c6 {[%emt 0:04:13]} 6. e3 {
[%emt 0:02:40]} Be7 {[%emt 0:03:36]} 7. Bd3 {[%emt 0:06:45]} Ne4 {[%emt 0:00:
00]} 8. Bxe7 {[%emt 0:06:56]} Qxe7 {[%emt 0:02:18]} 9. Bxe4 {[%emt 0:16:57]}
dxe4 {[%emt 0:00:11]} 10. Nge2 {[%emt 0:00:51]} Nd7 {[%emt 0:05:07]} 11. Ng3 {
[%emt 0:04:04]} Nf6 {[%emt 0:04:59]} 12. Qc2 {[%emt 0:01:08]} O-O {[%emt 0:00:
00]} 13. Ngxe4 {[%emt 0:02:24]} Re8 {[%emt 0:02:15]} 14. Nxf6+ {[%emt 0:01:07]}
Qxf6 {[%emt 0:00:10]} 15. O-O {[%emt 0:00:05]} Qg5 {[%emt 0:04:02]} 16. e4 {
[%emt 0:01:38]} Be6 {[%emt 0:03:29]} 17. f4 {[%emt 0:03:29]} Qa5 {[%emt 0:00:
00]} 18. f5 {[%emt 0:06:55]} Bc4 {[%emt 0:03:59]} 19. Rfe1 {[%emt 0:02:51]}
Rad8 {[%emt 0:01:12]} 20. b3 {[%emt 0:00:57]} Ba6 {[%emt 0:02:50]} 21. Rad1 {
[%emt 0:03:03]} Rd7 {[%emt 0:06:22]} 22. e5 {[%emt 0:05:21]} Qd8 {[%emt 0:00:
00]} 23. Qf2 {[%emt 0:00:49]} b6 {[%emt 0:04:28]} 24. f6 {[%emt 0:00:30]} gxf6
{[%emt 0:02:02]} 25. Ne4 {[%emt 0:00:37]} Bc8 {[%emt 0:07:30]} 1-0

[Event "44th Chess Olympiad Women 2022"]
[Site "Chennai"]
[Date "2022.07.31"]
[Round "3.24"]
[White "Bofroud, Naya"]
[Black "Simkunaite, Gabija"]
[Result "0-1"]
[WhiteElo "1660"]
[BlackElo "2010"]
[Annotator "NA"]
[PlyCount "82"]
[EventDate "2022.??.??"]
[TimeControl "60"]

1. d4 {[%emt 0:00:05]} d5 {[%emt 0:00:17]} 2. c4 {[%emt 0:00:10]} e6 {[%emt 0:
00:00]} 3. Nf3 {[%emt 0:00:13]} Nf6 {[%emt 0:00:17]} 4. Nc3 {[%emt 0:00:28]} a6
{[%emt 0:00:08]} 5. Bg5 {[%emt 0:02:35]} dxc4 {[%emt 0:00:16]} 6. a4 {[%emt 0:
00:00]} Nbd7 {[%emt 0:10:14]} 7. e3 {[%emt 0:03:18]} c5 {[%emt 0:05:33]} 8.
Bxc4 {[%emt 0:03:48]} cxd4 {[%emt 0:00:21]} 9. exd4 {[%emt 0:01:39]} Qc7 {
[%emt 0:02:43]} 10. Qe2 {[%emt 0:07:39]} Bb4 {[%emt 0:06:07]} 11. Bd2 {[%emt 0:
00:00]} O-O {[%emt 0:05:49]} 12. O-O {[%emt 0:02:15]} Nb6 {[%emt 0:02:47]} 13.
Bb3 {[%emt 0:03:16]} Qe7 {[%emt 0:15:43]} 14. Rfd1 {[%emt 0:12:30]} Rd8 {
[%emt 0:05:56]} 15. Bg5 {[%emt 0:09:20]} Bxc3 {[%emt 0:04:26]} 16. bxc3 {
[%emt 0:00:05]} h6 {[%emt 0:00:12]} 17. Bh4 {[%emt 0:01:14]} Bd7 {[%emt 0:00:
00]} 18. a5 {[%emt 0:08:05]} Nc8 {[%emt 0:01:10]} 19. Ne5 {[%emt 0:02:04]} Nd6
{[%emt 0:02:34]} 20. f3 {[%emt 0:05:24]} Nf5 {[%emt 0:02:31]} 21. Bf2 {[%emt 0:
00:00]} Nd5 {[%emt 0:00:39]} 22. Rac1 {[%emt 0:05:35]} Nf4 {[%emt 0:09:54]} 23.
Qe4 {[%emt 0:03:48]} Qg5 {[%emt 0:00:00]} 24. g3 {[%emt 0:01:11]} Nh3+ {
[%emt 0:00:00]} 25. Kf1 {[%emt 0:00:13]} Qe7 {[%emt 0:01:26]} 26. Bc2 {[%emt 0:
00:00]} Ng5 {[%emt 0:01:52]} 27. Qd3 {[%emt 0:01:36]} g6 {[%emt 0:03:11]} 28.
Kg2 {[%emt 0:00:54]} Rac8 {[%emt 0:02:51]} 29. Nxd7 {[%emt 0:03:03]} Rxd7 {
[%emt 0:00:22]} 30. c4 {[%emt 0:01:06]} Qb4 {[%emt 0:01:08]} 31. Qd2 {[%emt 0:
00:00]} Qxd2 {[%emt 0:00:22]} 32. Rxd2 {[%emt 0:00:05]} Rxc4 {[%emt 0:00:09]}
33. Rcd1 {[%emt 0:00:45]} Nd6 {[%emt 0:01:50]} 34. h4 {[%emt 0:00:39]} Nh7 {
[%emt 0:00:13]} 35. Bb3 {[%emt 0:00:28]} Rb4 {[%emt 0:01:36]} 36. Bc2 {[%emt 0:
00:00]} Nc4 {[%emt 0:00:18]} 37. Re2 {[%emt 0:00:43]} Nf6 {[%emt 0:01:05]} 38.
Be1 {[%emt 0:00:36]} Rb2 {[%emt 0:00:21]} 39. Rd3 {[%emt 0:00:28]} Nd5 {
[%emt 0:00:53]} 40. Bf2 {[%emt 0:00:29]} Nxa5 {[%emt 0:01:13]} 41. Red2 {
[%emt 0:30:30]} Nc4 {[%emt 0:30:36]} 0-1

[Event "44th Chess Olympiad Women 2022"]
[Site "Chennai"]
[Date "2022.07.31"]
[Round "3.24"]
[White "Mahmoud, Roula"]
[Black "Zaksaite, Salomeja"]
[Result "0-1"]
[WhiteElo "1765"]
[BlackElo "2212"]
[Annotator "RC"]
[PlyCount "72"]
[EventDate "2022.??.??"]
[TimeControl "60"]

1. e4 {[%emt 0:00:03]} c5 {[%emt 0:00:08]} 2. Nf3 {[%emt 0:00:05]} Nc6 {
[%emt 0:00:25]} 3. g3 {[%emt 0:01:17]} g6 {[%emt 0:01:55]} 4. Bg2 {[%emt 0:00:
00]} Bg7 {[%emt 0:00:05]} 5. O-O {[%emt 0:00:20]} e5 {[%emt 0:01:15]} 6. Nc3 {
[%emt 0:04:02]} Nge7 {[%emt 0:00:07]} 7. Re1 {[%emt 0:05:06]} O-O {[%emt 0:00:
00]} 8. Nd5 {[%emt 0:00:41]} d6 {[%emt 0:00:30]} 9. d3 {[%emt 0:03:54]} h6 {
[%emt 0:05:09]} 10. c3 {[%emt 0:00:46]} Be6 {[%emt 0:00:18]} 11. Nh4 {[%emt 0:
00:00]} Kh7 {[%emt 0:02:59]} 12. Be3 {[%emt 0:10:45]} f5 {[%emt 0:06:26]} 13.
f4 {[%emt 0:12:51]} fxe4 {[%emt 0:46:44]} 14. dxe4 {[%emt 0:05:44]} exf4 {
[%emt 0:05:18]} 15. gxf4 {[%emt 0:10:28]} Qd7 {[%emt 0:04:17]} 16. Qc2 {
[%emt 0:10:38]} Rae8 {[%emt 0:11:25]} 17. Rad1 {[%emt 0:01:32]} Bg4 {[%emt 0:
00:00]} 18. Rd2 {[%emt 0:00:45]} Nxd5 {[%emt 0:05:30]} 19. Rxd5 {[%emt 0:02:53]
} Ne7 {[%emt 0:01:15]} 20. Rd2 {[%emt 0:01:01]} Qe6 {[%emt 0:00:38]} 21. Nf3 {
[%emt 0:12:29]} Nc6 {[%emt 0:00:43]} 22. e5 {[%emt 0:00:50]} Bxf3 {[%emt 0:00:
00]} 23. Bxf3 {[%emt 0:00:32]} Nxe5 {[%emt 0:00:26]} 24. fxe5 {[%emt 0:02:38]}
Rxf3 {[%emt 0:00:06]} 25. Rxd6 {[%emt 0:00:17]} Qg4+ {[%emt 0:02:31]} 26. Kh1 {
[%emt 0:01:13]} Bxe5 {[%emt 0:01:56]} 27. Rg1 {[%emt 0:02:08]} Qxg1+ {[%emt 0:
00:00]} 28. Bxg1 {[%emt 0:01:34]} Bxd6 {[%emt 0:00:01]} 29. Qa4 {[%emt 0:01:49]
} Re7 {[%emt 0:00:23]} 30. Kg2 {[%emt 0:01:42]} Rf4 {[%emt 0:00:37]} 31. Qd1 {
[%emt 0:00:30]} Rf6 {[%emt 0:00:51]} 32. Qd5 {[%emt 0:01:12]} b6 {[%emt 0:00:
00]} 33. b4 {[%emt 0:00:37]} cxb4 {[%emt 0:00:36]} 34. Bd4 {[%emt 0:00:30]}
Re2+ {[%emt 0:00:23]} 35. Kh1 {[%emt 0:01:42]} Rf1+ {[%emt 0:00:16]} 36. Bg1 {
[%emt 0:00:01]} Rxh2# {[%emt 0:00:07]} 0-1

[Event "44th Chess Olympiad Women 2022"]
[Site "Chennai"]
[Date "2022.07.31"]
[Round "3.24"]
[White "Sibajeva, Marija"]
[Black "Khalil, Manar"]
[Result "1/2-1/2"]
[WhiteElo "2032"]
[BlackElo "1831"]
[Annotator "NA RC"]
[PlyCount "123"]
[EventDate "2022.??.??"]
[TimeControl "60"]

1. e4 c5 {[%emt 0:00:09]} 2. Nf3 {[%emt 0:00:06]} Nc6 {[%emt 0:00:15]} 3. Bb5 {
[%emt 0:00:08]} e6 {[%emt 0:00:20]} 4. O-O {[%emt 0:00:34]} Nge7 {[%emt 0:00:
00]} 5. Re1 {[%emt 0:00:24]} a6 {[%emt 0:02:48]} 6. Bf1 {[%emt 0:00:10]} Ng6 {
[%emt 0:00:12]} 7. c3 {[%emt 0:03:16]} d6 {[%emt 0:08:44]} 8. d4 {[%emt 0:00:
00]} cxd4 {[%emt 0:00:22]} 9. cxd4 {[%emt 0:00:05]} Be7 {[%emt 0:00:19]} 10.
Nc3 {[%emt 0:04:29]} O-O {[%emt 0:01:42]} 11. d5 {[%emt 0:03:53]} Nce5 {
[%emt 0:02:56]} 12. Nd4 {[%emt 0:00:30]} Bg5 {[%emt 0:03:29]} 13. g3 {[%emt 0:
00:00]} Bxc1 {[%emt 0:10:29]} 14. Rxc1 {[%emt 0:00:16]} Qg5 {[%emt 0:00:32]}
15. Bg2 {[%emt 0:03:38]} Nc4 {[%emt 0:04:53]} 16. Qb3 {[%emt 0:10:33]} b5 {
[%emt 0:08:12]} 17. a4 {[%emt 0:00:04]} Qd2 {[%emt 0:01:30]} 18. Nc2 {[%emt 0:
00:00]} Nge5 {[%emt 0:06:19]} 19. Red1 {[%emt 0:07:34]} Qh6 {[%emt 0:13:32]}
20. axb5 {[%emt 0:02:30]} Nd2 {[%emt 0:03:06]} 21. Rxd2 {[%emt 0:08:08]} Qxd2 {
[%emt 0:00:17]} 22. Rd1 {[%emt 0:00:03]} Qh6 {[%emt 0:00:23]} 23. f4 {[%emt 0:
00:00]} Nd7 {[%emt 0:03:05]} 24. dxe6 {[%emt 0:01:22]} Qxe6 {[%emt 0:02:25]}
25. Qxe6 {[%emt 0:02:31]} fxe6 {[%emt 0:00:04]} 26. e5 {[%emt 0:03:25]} Rb8 {
[%emt 0:06:12]} 27. Rxd6 {[%emt 0:01:07]} axb5 {[%emt 0:00:51]} 28. Nd4 {
[%emt 0:05:06]} Rb6 {[%emt 0:07:35]} 29. Rxe6 {[%emt 0:00:32]} b4 {[%emt 0:00:
00]} 30. Nd5 {[%emt 0:03:19]} Rb8 {[%emt 0:04:37]} 31. Rd6 {[%emt 0:06:38]} Nc5
{[%emt 0:01:48]} 32. Nc6 {[%emt 0:05:50]} Ra8 {[%emt 0:00:52]} 33. Ndxb4 {
[%emt 0:01:14]} Ra1+ {[%emt 0:01:11]} 34. Kf2 {[%emt 0:00:05]} Rb1 {[%emt 0:00:
00]} 35. Rd2 {[%emt 0:02:25]} Be6 {[%emt 0:01:27]} 36. Rc2 {[%emt 0:02:50]} Na4
{[%emt 0:00:36]} 37. Nd4 {[%emt 0:00:54]} Rb8 {[%emt 0:01:56]} 38. Ndc6 {
[%emt 0:04:14]} Rb6 {[%emt 0:00:27]} 39. Ne7+ {[%emt 0:01:17]} Kf7 {[%emt 0:00:
00]} 40. Ned5 {[%emt 0:00:19]} Rb8 {[%emt 0:02:17]} 41. b3 {[%emt 0:11:17]}
Rxb3 {[%emt 0:02:30]} 42. Rc7+ {[%emt 0:02:18]} Kf8 {[%emt 0:00:25]} 43. Rc6 {
[%emt 0:00:42]} Rb2+ {[%emt 0:08:50]} 44. Nc2 {[%emt 0:01:09]} Rd8 {[%emt 0:00:
00]} 45. Nde3 {[%emt 0:01:19]} Bd7 {[%emt 0:04:34]} 46. Rd6 {[%emt 0:01:06]}
Nc5 {[%emt 0:01:38]} 47. Rd2 {[%emt 0:05:04]} Rc8 {[%emt 0:02:13]} 48. Ke1 {
[%emt 0:03:56]} Bb5 {[%emt 0:01:09]} 49. Bf1 {[%emt 0:02:28]} Ne4 {[%emt 0:00:
00]} 50. Rd4 {[%emt 0:01:39]} Rb1+ {[%emt 0:03:50]} 51. Rd1 {[%emt 0:00:20]}
Rxd1+ {[%emt 0:00:38]} 52. Kxd1 {[%emt 0:00:17]} Rd8+ {[%emt 0:01:56]} 53. Ke1
{[%emt 0:01:26]} Bxf1 {[%emt 0:00:14]} 54. Nxf1 {[%emt 0:00:24]} Ke7 {[%emt 0:
00:00]} 55. Nce3 {[%emt 0:00:29]} Ke6 {[%emt 0:00:34]} 56. Ke2 {[%emt 0:00:15]}
g6 {[%emt 0:00:33]} 57. Kf3 {[%emt 0:01:55]} Nd2+ {[%emt 0:01:17]} 58. Nxd2 {
[%emt 0:02:24]} Rxd2 {[%emt 0:00:01]} 59. h3 {[%emt 0:00:22]} Rh2 {[%emt 0:00:
00]} 60. Ng4 {[%emt 0:01:47]} Ra2 {[%emt 0:01:04]} 61. Nf6 {[%emt 0:01:14]} h5
{[%emt 0:00:46]} 62. Ne4 {[%emt 0:00:20]} 1/2-1/2

[Event "44th Chess Olympiad Women 2022"]
[Site "Chennai"]
[Date "2022.07.31"]
[Round "3.25"]
[White "Berezovska, Svetlana"]
[Black "Radikovic, Anamarija"]
[Result "1-0"]
[WhiteElo "1781"]
[BlackElo "2099"]
[Annotator "NA RC"]
[PlyCount "67"]
[EventDate "2022.??.??"]
[TimeControl "60"]

1. e4 {[%emt 0:00:03]} c5 {[%emt 0:00:03]} 2. Nf3 {[%emt 0:00:04]} d6 {[%emt 0:
00:00]} 3. d4 {[%emt 0:00:05]} cxd4 {[%emt 0:00:04]} 4. Nxd4 {[%emt 0:00:02]}
Nf6 {[%emt 0:00:07]} 5. Nc3 {[%emt 0:00:04]} a6 {[%emt 0:00:03]} 6. h3 {
[%emt 0:00:41]} e5 {[%emt 0:00:05]} 7. Nde2 {[%emt 0:00:27]} h5 {[%emt 0:00:06]
} 8. Bg5 {[%emt 0:00:56]} Be6 {[%emt 0:00:08]} 9. Bxf6 {[%emt 0:00:29]} Qxf6 {
[%emt 0:00:06]} 10. Nd5 {[%emt 0:00:18]} Qd8 {[%emt 0:00:06]} 11. Qd3 {[%emt 0:
00:00]} Nd7 {[%emt 0:00:07]} 12. O-O-O {[%emt 0:03:30]} g6 {[%emt 0:00:21]} 13.
Kb1 {[%emt 0:00:19]} Nc5 {[%emt 0:04:28]} 14. Qf3 {[%emt 0:00:51]} Bh6 {
[%emt 0:01:08]} 15. Rg1 {[%emt 0:19:54]} Bg5 {[%emt 0:13:42]} 16. g3 {[%emt 0:
00:00]} Rc8 {[%emt 0:08:54]} 17. h4 {[%emt 0:08:24]} Be7 {[%emt 0:12:04]} 18.
Qe3 {[%emt 0:03:03]} Bf8 {[%emt 0:08:56]} 19. Nec3 {[%emt 0:16:43]} Bh6 {
[%emt 0:03:00]} 20. f4 {[%emt 0:03:32]} exf4 {[%emt 0:17:58]} 21. Qd4 {[%emt 0:
00:00]} Rf8 {[%emt 0:13:19]} 22. Nf6+ {[%emt 0:06:33]} Ke7 {[%emt 0:00:05]} 23.
Ncd5+ {[%emt 0:01:16]} Bxd5 {[%emt 0:00:09]} 24. Nxd5+ {[%emt 0:00:46]} Ke8 {
[%emt 0:04:04]} 25. Nf6+ {[%emt 0:04:46]} Ke7 {[%emt 0:00:05]} 26. e5 {[%emt 0:
00:00]} d5 {[%emt 0:01:12]} 27. Nxd5+ {[%emt 0:05:05]} Ke8 {[%emt 0:00:05]} 28.
Bh3 {[%emt 0:06:11]} f5 {[%emt 0:04:47]} 29. exf6 {[%emt 0:01:05]} Rc6 {
[%emt 0:00:07]} 30. Qe5+ {[%emt 0:02:45]} Kf7 {[%emt 0:00:45]} 31. Ne7 {
[%emt 0:00:52]} Qc7 {[%emt 0:02:45]} 32. Nxc6 {[%emt 0:00:11]} Qxc6 {[%emt 0:
00:00]} 33. Qe7+ {[%emt 0:00:44]} Kg8 {[%emt 0:00:06]} 34. gxf4 {[%emt 0:00:55]
} 1-0

[Event "44th Chess Olympiad Women 2022"]
[Site "Chennai"]
[Date "2022.07.31"]
[Round "3.25"]
[White "Berke, Ana"]
[Black "Jose de Ribbegren, Kenia"]
[Result "1-0"]
[WhiteElo "2163"]
[BlackElo "1787"]
[Annotator "RC"]
[PlyCount "59"]
[EventDate "2022.??.??"]
[TimeControl "60"]

1. e4 {[%emt 0:00:07]} e6 {[%emt 0:00:14]} 2. d4 {[%emt 0:00:24]} d5 {[%emt 0:
00:00]} 3. Nd2 {[%emt 0:00:04]} Nf6 {[%emt 0:01:27]} 4. e5 {[%emt 0:00:09]}
Nfd7 {[%emt 0:00:07]} 5. c3 {[%emt 0:00:15]} c5 {[%emt 0:00:34]} 6. Bd3 {
[%emt 0:00:13]} b6 {[%emt 0:02:10]} 7. Ne2 {[%emt 0:01:32]} Ba6 {[%emt 0:02:53]
} 8. Bxa6 {[%emt 0:00:07]} Nxa6 {[%emt 0:00:17]} 9. Nf4 {[%emt 0:00:25]} Qe7 {
[%emt 0:12:03]} 10. O-O {[%emt 0:09:16]} Nc7 {[%emt 0:04:42]} 11. c4 {[%emt 0:
00:00]} g5 {[%emt 0:23:56]} 12. cxd5 {[%emt 0:03:23]} gxf4 {[%emt 0:05:58]} 13.
d6 {[%emt 0:00:34]} Qd8 {[%emt 0:06:27]} 14. dxc7 {[%emt 0:07:04]} Qxc7 {
[%emt 0:00:05]} 15. Nf3 {[%emt 0:01:21]} cxd4 {[%emt 0:09:29]} 16. Bxf4 {
[%emt 0:01:14]} Bc5 {[%emt 0:04:20]} 17. Rc1 {[%emt 0:01:49]} Qb7 {[%emt 0:00:
00]} 18. Ng5 {[%emt 0:05:04]} Ke7 {[%emt 0:03:34]} 19. Qh5 {[%emt 0:01:47]}
Raf8 {[%emt 0:03:59]} 20. Rfe1 {[%emt 0:00:34]} Rhg8 {[%emt 0:03:16]} 21. Qh4 {
[%emt 0:02:09]} Ke8 {[%emt 0:00:43]} 22. Bg3 {[%emt 0:09:43]} Be7 {[%emt 0:00:
00]} 23. Ne4 {[%emt 0:02:59]} Nxe5 {[%emt 0:02:35]} 24. Nf6+ {[%emt 0:05:04]}
Bxf6 {[%emt 0:00:11]} 25. Qxf6 {[%emt 0:00:13]} Nc6 {[%emt 0:08:23]} 26. Qf3 {
[%emt 0:03:31]} Kd7 {[%emt 0:00:16]} 27. Red1 {[%emt 0:01:33]} Rg5 {[%emt 0:00:
00]} 28. Rxd4+ {[%emt 0:00:44]} Rd5 {[%emt 0:00:30]} 29. Rxd5+ {[%emt 0:00:11]}
exd5 {[%emt 0:00:05]} 30. Qxd5+ {[%emt 0:00:07]} 1-0

[Event "44th Chess Olympiad Women 2022"]
[Site "Chennai"]
[Date "2022.07.31"]
[Round "3.25"]
[White "Dejanovic, Tereza"]
[Black "Berezovsky, Fiorina"]
[Result "1-0"]
[WhiteElo "2011"]
[BlackElo "1544"]
[Annotator "NA"]
[PlyCount "75"]
[EventDate "2022.??.??"]
[TimeControl "60"]

1. e4 {[%emt 0:00:02]} c5 {[%emt 0:00:19]} 2. c3 {[%emt 0:00:05]} Nf6 {[%emt 0:
00:00]} 3. e5 {[%emt 0:00:03]} Nd5 {[%emt 0:00:42]} 4. d4 {[%emt 0:00:05]} cxd4
{[%emt 0:00:30]} 5. Nf3 {[%emt 0:00:07]} e6 {[%emt 0:00:34]} 6. cxd4 {[%emt 0:
00:00]} b6 {[%emt 0:00:49]} 7. Bc4 {[%emt 0:00:50]} Ba6 {[%emt 0:01:05]} 8.
Bxa6 {[%emt 0:02:18]} Nxa6 {[%emt 0:00:08]} 9. O-O {[%emt 0:01:00]} Be7 {
[%emt 0:02:51]} 10. Bd2 {[%emt 0:02:05]} O-O {[%emt 0:03:01]} 11. Nc3 {[%emt 0:
00:00]} Nac7 {[%emt 0:05:09]} 12. Ne4 {[%emt 0:03:41]} f5 {[%emt 0:05:21]} 13.
exf6 {[%emt 0:02:04]} Nxf6 {[%emt 0:01:23]} 14. Qe2 {[%emt 0:01:18]} Ncd5 {
[%emt 0:02:58]} 15. Rac1 {[%emt 0:07:34]} Nxe4 {[%emt 0:03:25]} 16. Qxe4 {
[%emt 0:00:13]} Rf5 {[%emt 0:03:46]} 17. Ne5 {[%emt 0:06:46]} Bg5 {[%emt 0:00:
00]} 18. f4 {[%emt 0:08:03]} Be7 {[%emt 0:05:36]} 19. g4 {[%emt 0:09:38]} Rf8 {
[%emt 0:01:56]} 20. Rf3 {[%emt 0:08:58]} Rc8 {[%emt 0:04:17]} 21. Rh3 {[%emt 0:
00:00]} Nf6 {[%emt 0:02:37]} 22. Qd3 {[%emt 0:00:30]} Rxc1+ {[%emt 0:01:30]}
23. Bxc1 {[%emt 0:00:09]} d5 {[%emt 0:02:13]} 24. g5 {[%emt 0:04:26]} Ne4 {
[%emt 0:03:35]} 25. Qe2 {[%emt 0:06:25]} g6 {[%emt 0:05:11]} 26. Qg4 {[%emt 0:
00:00]} Qc8 {[%emt 0:02:11]} 27. Be3 {[%emt 0:00:54]} Bd6 {[%emt 0:04:23]} 28.
Qh4 {[%emt 0:06:14]} Qc7 {[%emt 0:00:15]} 29. Nxg6 {[%emt 0:02:39]} Rf7 {
[%emt 0:07:43]} 30. Ne5 {[%emt 0:06:11]} Bxe5 {[%emt 0:00:40]} 31. dxe5 {
[%emt 0:00:44]} Qc2 {[%emt 0:01:00]} 32. g6 {[%emt 0:02:36]} Qd1+ {[%emt 0:00:
00]} 33. Kg2 {[%emt 0:00:08]} Qc2+ {[%emt 0:10:34]} 34. Kh1 {[%emt 0:05:21]}
Qd1+ {[%emt 0:00:47]} 35. Bg1 {[%emt 0:00:03]} Re7 {[%emt 0:03:30]} 36. Qxe7 {
[%emt 0:01:25]} Nf2+ {[%emt 0:00:16]} 37. Kg2 {[%emt 0:00:03]} Qg4+ {[%emt 0:
00:00]} 38. Rg3 {[%emt 0:01:11]} 1-0

[Event "44th Chess Olympiad Women 2022"]
[Site "Chennai"]
[Date "2022.07.31"]
[Round "3.25"]
[White "Dubois, Martine"]
[Black "Medic, Mirjana"]
[Result "0-1"]
[WhiteElo "1782"]
[BlackElo "2194"]
[Annotator "RC"]
[PlyCount "104"]
[EventDate "2022.??.??"]
[TimeControl "60"]

1. e4 {[%emt 0:00:04]} e6 {[%emt 0:00:08]} 2. d4 {[%emt 0:00:13]} d5 {[%emt 0:
00:00]} 3. Bd3 {[%emt 0:00:10]} dxe4 {[%emt 0:00:40]} 4. Bxe4 {[%emt 0:00:08]}
Nf6 {[%emt 0:00:09]} 5. Bf3 {[%emt 0:00:08]} Nbd7 {[%emt 0:00:37]} 6. Ne2 {
[%emt 0:07:29]} Bd6 {[%emt 0:00:28]} 7. O-O {[%emt 0:04:57]} e5 {[%emt 0:00:55]
} 8. Ng3 {[%emt 0:02:15]} O-O {[%emt 0:04:54]} 9. Nc3 {[%emt 0:06:14]} exd4 {
[%emt 0:14:56]} 10. Qxd4 {[%emt 0:09:11]} Ne5 {[%emt 0:06:08]} 11. Be2 {
[%emt 0:05:03]} Ng6 {[%emt 0:01:36]} 12. Rd1 {[%emt 0:03:39]} Qe7 {[%emt 0:00:
00]} 13. Bg5 {[%emt 0:06:32]} Qe5 {[%emt 0:09:42]} 14. Bxf6 {[%emt 0:05:52]}
Qxf6 {[%emt 0:03:09]} 15. Qxf6 {[%emt 0:03:16]} gxf6 {[%emt 0:00:02]} 16. Bd3 {
[%emt 0:06:39]} Be5 {[%emt 0:01:13]} 17. Rab1 {[%emt 0:02:47]} Be6 {[%emt 0:00:
00]} 18. a3 {[%emt 0:03:32]} Rad8 {[%emt 0:05:24]} 19. Be4 {[%emt 0:02:19]} c6
{[%emt 0:00:38]} 20. Rxd8 {[%emt 0:02:53]} Rxd8 {[%emt 0:00:02]} 21. Rd1 {
[%emt 0:00:52]} Rxd1+ {[%emt 0:00:51]} 22. Nxd1 {[%emt 0:00:03]} Ne7 {[%emt 0:
00:00]} 23. Ne2 {[%emt 0:02:47]} f5 {[%emt 0:00:56]} 24. Bf3 {[%emt 0:02:11]}
f4 {[%emt 0:01:27]} 25. g3 {[%emt 0:04:34]} fxg3 {[%emt 0:00:37]} 26. hxg3 {
[%emt 0:01:24]} Nd5 {[%emt 0:01:24]} 27. Be4 {[%emt 0:02:12]} Nb6 {[%emt 0:00:
00]} 28. b3 {[%emt 0:02:29]} a5 {[%emt 0:00:53]} 29. f4 {[%emt 0:01:00]} Bd6 {
[%emt 0:00:28]} 30. f5 {[%emt 0:00:44]} Bd5 {[%emt 0:02:01]} 31. Bxd5 {[%emt 0:
00:00]} Nxd5 {[%emt 0:00:03]} 32. c4 {[%emt 0:00:57]} Ne7 {[%emt 0:01:08]} 33.
f6 {[%emt 0:00:39]} Ng6 {[%emt 0:00:43]} 34. a4 {[%emt 0:00:28]} Be5 {[%emt 0:
00:00]} 35. Ndc3 {[%emt 0:02:29]} Bxf6 {[%emt 0:00:12]} 36. Ne4 {[%emt 0:00:12]
} Be7 {[%emt 0:05:32]} 37. Kg2 {[%emt 0:01:58]} f5 {[%emt 0:01:14]} 38. Nd2 {
[%emt 0:00:30]} Kf7 {[%emt 0:00:29]} 39. Nd4 {[%emt 0:02:04]} Kf6 {[%emt 0:00:
00]} 40. Kf3 {[%emt 0:01:52]} Bc5 {[%emt 0:02:13]} 41. Ne2 {[%emt 0:31:36]}
Ne5+ {[%emt 0:32:04]} 42. Kf4 {[%emt 0:01:38]} Nd3+ {[%emt 0:00:28]} 43. Kf3 {
[%emt 0:00:12]} Bb4 {[%emt 0:04:53]} 44. Ke3 {[%emt 0:03:32]} Nc5 {[%emt 0:00:
00]} 45. Nc1 {[%emt 0:01:07]} Bxd2+ {[%emt 0:00:36]} 46. Kxd2 {[%emt 0:00:03]}
Ne4+ {[%emt 0:00:08]} 47. Ke3 {[%emt 0:00:15]} Nxg3 {[%emt 0:00:08]} 48. Nd3 {
[%emt 0:00:24]} Ne4 {[%emt 0:00:15]} 49. Kf4 {[%emt 0:00:29]} h5 {[%emt 0:00:
00]} 50. Ne5 {[%emt 0:01:06]} Nc5 {[%emt 0:00:28]} 51. Nf3 {[%emt 0:01:35]}
Nxb3 {[%emt 0:00:51]} 52. Nh4 {[%emt 0:00:03]} Nd4 {[%emt 0:00:38]} 0-1